[Event "*** Titled Tuesday Blitz"]
[Site "Chess.com"]
[Date "2020.03.03"]
[Round "5"]
[White "Haykoooo0o"]
[Black "Keaton87"]
[Result "1/2-1/2"]
[WhiteElo "2487"]
[BlackElo "2655"]
[TimeControl "180+1"]
[EndTime "9:53:01 PST"]
[Termination "Game drawn - insufficient material"]

1. d4 {[%clk 0:03:00.9]} 1... d5 {[%clk 0:02:29.3]} 2. c4 {[%clk 0:02:58.9]}
2... e6 {[%clk 0:02:28.2]} 3. Nf3 {[%clk 0:02:58]} 3... a6 {[%clk 0:02:27]} 4.
g3 {[%clk 0:02:57.6]} 4... dxc4 {[%clk 0:02:25.6]} 5. Bg2 {[%clk 0:02:58.5]}
5... Nf6 {[%clk 0:02:22.8]} 6. O-O {[%clk 0:02:59.4]} 6... b5 {[%clk 0:02:22.9]}
7. a4 {[%clk 0:02:59]} 7... Bb7 {[%clk 0:02:22.8]} 8. b3 {[%clk 0:02:58.4]} 8...
cxb3 {[%clk 0:02:20.2]} 9. Qxb3 {[%clk 0:02:59.3]} 9... c6 {[%clk 0:02:20.2]}
10. Nc3 {[%clk 0:02:57.1]} 10... Nbd7 {[%clk 0:02:20.2]} 11. Rd1 {[%clk
0:02:56.6]} 11... Be7 {[%clk 0:02:19.5]} 12. e4 {[%clk 0:02:57]} 12... O-O
{[%clk 0:02:19.1]} 13. e5 {[%clk 0:02:57.1]} 13... Nd5 {[%clk 0:02:18.8]} 14.
Ne4 {[%clk 0:02:57.6]} 14... c5 {[%clk 0:02:15]} 15. dxc5 {[%clk 0:02:44.4]}
15... Nxc5 {[%clk 0:02:14.9]} 16. Nxc5 {[%clk 0:02:41.1]} 16... Bxc5 {[%clk
0:02:15.8]} 17. axb5 {[%clk 0:02:32.4]} 17... Qb6 {[%clk 0:02:14.7]} 18. Qc2
{[%clk 0:02:10.5]} 18... Nb4 {[%clk 0:01:55.5]} 19. Qb1 {[%clk 0:02:06.4]} 19...
Bxf2+ {[%clk 0:01:53.4]} 20. Kh1 {[%clk 0:02:05.7]} 20... Qxb5 {[%clk
0:01:37.8]} 21. Ng5 {[%clk 0:01:52.1]} 21... Bxg2+ {[%clk 0:01:36.6]} 22. Kxg2
{[%clk 0:01:51.7]} 22... g6 {[%clk 0:01:25.7]} 23. Kxf2 {[%clk 0:01:52]} 23...
f6 {[%clk 0:01:13.8]} 24. Nf3 {[%clk 0:01:19]} 24... fxe5 {[%clk 0:01:09.5]} 25.
Qe4 {[%clk 0:01:17.1]} 25... Rad8 {[%clk 0:00:54.9]} 26. Bh6 {[%clk 0:01:11.3]}
26... Nd3+ {[%clk 0:00:46.8]} 27. Kg1 {[%clk 0:00:41.1]} 27... Qc5+ {[%clk
0:00:24.5]} 28. Be3 {[%clk 0:00:39.9]} 28... Qd5 {[%clk 0:00:21.8]} 29. Qxd5
{[%clk 0:00:33.6]} 29... exd5 {[%clk 0:00:22.7]} 30. Ng5 {[%clk 0:00:31.4]}
30... Nb4 {[%clk 0:00:19.3]} 31. Ne6 {[%clk 0:00:30.6]} 31... Nc2 {[%clk
0:00:19.4]} 32. Bg5 {[%clk 0:00:18.2]} 32... Nxa1 {[%clk 0:00:16.8]} 33. Nxd8
{[%clk 0:00:17]} 33... h6 {[%clk 0:00:12]} 34. Bxh6 {[%clk 0:00:15.9]} 34...
Rxd8 {[%clk 0:00:11.6]} 35. Rxa1 {[%clk 0:00:16.5]} 35... Rd6 {[%clk 0:00:10.9]}
36. Kf2 {[%clk 0:00:15]} 36... Kf7 {[%clk 0:00:11.1]} 37. Ke2 {[%clk 0:00:14.8]}
37... Ke6 {[%clk 0:00:11.7]} 38. Bd2 {[%clk 0:00:15.3]} 38... d4 {[%clk
0:00:10.5]} 39. Kd3 {[%clk 0:00:14.8]} 39... Rb6 {[%clk 0:00:09.5]} 40. Ke4
{[%clk 0:00:14.1]} 40... Kd6 {[%clk 0:00:05.5]} 41. Ra5 {[%clk 0:00:14.1]} 41...
Rb2 {[%clk 0:00:05.4]} 42. Rd5+ {[%clk 0:00:14.6]} 42... Kc6 {[%clk 0:00:05.2]}
43. Bg5 {[%clk 0:00:12]} 43... Re2+ {[%clk 0:00:04.9]} 44. Kd3 {[%clk
0:00:09.7]} 44... Kxd5 {[%clk 0:00:03.8]} 45. Kxe2 {[%clk 0:00:10.3]} 45... a5
{[%clk 0:00:04.7]} 46. Be7 {[%clk 0:00:09.8]} 46... a4 {[%clk 0:00:05.6]} 47. h4
{[%clk 0:00:07.7]} 47... e4 {[%clk 0:00:05.9]} 48. g4 {[%clk 0:00:08.1]} 48...
Ke5 {[%clk 0:00:06.3]} 49. h5 {[%clk 0:00:07.9]} 49... gxh5 {[%clk 0:00:06.2]}
50. gxh5 {[%clk 0:00:08.8]} 50... Kf5 {[%clk 0:00:06.4]} 51. Kd2 {[%clk
0:00:08.5]} 51... Ke6 {[%clk 0:00:03.8]} 52. h6 {[%clk 0:00:07.6]} 52... Kf7
{[%clk 0:00:04.1]} 53. Bc5 {[%clk 0:00:04.7]} 53... Kg6 {[%clk 0:00:04.2]} 54.
Bxd4 {[%clk 0:00:03.9]} 54... Kxh6 {[%clk 0:00:04.2]} 55. Ke3 {[%clk 0:00:04.8]}
55... Kg6 {[%clk 0:00:04.4]} 56. Kxe4 {[%clk 0:00:05.7]} 56... a3 {[%clk
0:00:04.5]} 57. Ba1 {[%clk 0:00:06.6]} 57... a2 {[%clk 0:00:05.4]} 58. Kd3
{[%clk 0:00:07.5]} 58... Kf7 {[%clk 0:00:05.9]} 59. Kc4 {[%clk 0:00:08.4]} 59...
Ke6 {[%clk 0:00:06.8]} 60. Kb3 {[%clk 0:00:09.3]} 60... Kd5 {[%clk 0:00:07.5]}
61. Kxa2 {[%clk 0:00:10.2]} 1/2-1/2

[Event "*** Titled Tuesday Blitz"]
[Site "Chess.com"]
[Date "2020.03.03"]
[Round "5"]
[White "Man-Chuk"]
[Black "Willychess95"]
[Result "1-0"]
[WhiteElo "2768"]
[BlackElo "2559"]
[TimeControl "180+1"]
[EndTime "9:53:05 PST"]
[Termination "Man-Chuk won on time"]

1. d4 {[%clk 0:02:31.8]} 1... Nf6 {[%clk 0:02:59.1]} 2. c4 {[%clk 0:02:30.8]}
2... d6 {[%clk 0:02:58.3]} 3. Nf3 {[%clk 0:02:30.3]} 3... Nbd7 {[%clk
0:02:55.2]} 4. Nc3 {[%clk 0:02:30.5]} 4... e5 {[%clk 0:02:54.7]} 5. g3 {[%clk
0:02:31]} 5... g6 {[%clk 0:02:49.8]} 6. Bg2 {[%clk 0:02:30.3]} 6... Bg7 {[%clk
0:02:47.1]} 7. O-O {[%clk 0:02:30.8]} 7... O-O {[%clk 0:02:44.7]} 8. e4 {[%clk
0:02:30.6]} 8... exd4 {[%clk 0:02:43.6]} 9. Nxd4 {[%clk 0:02:31.5]} 9... Re8
{[%clk 0:02:43.5]} 10. h3 {[%clk 0:02:30.5]} 10... a5 {[%clk 0:02:37.1]} 11. Be3
{[%clk 0:02:29.2]} 11... Nc5 {[%clk 0:02:30.3]} 12. Qc2 {[%clk 0:02:28.8]} 12...
Qe7 {[%clk 0:02:23.5]} 13. Rfe1 {[%clk 0:02:28]} 13... c6 {[%clk 0:02:16.9]} 14.
Rad1 {[%clk 0:02:25]} 14... Nfd7 {[%clk 0:02:08.7]} 15. b3 {[%clk 0:02:19.1]}
15... Ne6 {[%clk 0:01:50.1]} 16. Nxe6 {[%clk 0:02:07.4]} 16... Qxe6 {[%clk
0:01:50.5]} 17. f4 {[%clk 0:02:04.6]} 17... Nc5 {[%clk 0:01:39.7]} 18. e5 {[%clk
0:02:03.9]} 18... Qf5 {[%clk 0:01:25.8]} 19. Qxf5 {[%clk 0:02:01.1]} 19... Bxf5
{[%clk 0:01:26.7]} 20. Rxd6 {[%clk 0:02:00.5]} 20... Nd3 {[%clk 0:01:25.1]} 21.
Rd1 {[%clk 0:01:59.2]} 21... Nb4 {[%clk 0:01:24.1]} 22. g4 {[%clk 0:01:38.1]}
22... Be6 {[%clk 0:01:11.7]} 23. R6d2 {[%clk 0:01:38.4]} 23... f6 {[%clk
0:00:58.1]} 24. exf6 {[%clk 0:01:37.7]} 24... Bxf6 {[%clk 0:00:56.7]} 25. Ne4
{[%clk 0:01:38.2]} 25... Bg7 {[%clk 0:00:51.6]} 26. a3 {[%clk 0:01:32.1]} 26...
Na6 {[%clk 0:00:50.3]} 27. Bb6 {[%clk 0:01:31.6]} 27... a4 {[%clk 0:00:49.1]}
28. b4 {[%clk 0:01:22.3]} 28... Bxc4 {[%clk 0:00:49]} 29. Nd6 {[%clk 0:01:22.5]}
29... Bb3 {[%clk 0:00:42.9]} 30. Nxe8 {[%clk 0:01:21.8]} 30... Rxe8 {[%clk
0:00:37.3]} 31. Rd8 {[%clk 0:01:21.8]} 31... Kf7 {[%clk 0:00:31]} 32. R1d7+
{[%clk 0:01:05]} 32... Re7 {[%clk 0:00:30.8]} 33. Rxe7+ {[%clk 0:01:05.4]} 33...
Kxe7 {[%clk 0:00:31.7]} 34. Ra8 {[%clk 0:01:04.6]} 34... Bb2 {[%clk 0:00:25.4]}
35. Ra7 {[%clk 0:01:03.9]} 35... Bxa3 {[%clk 0:00:21]} 36. b5 {[%clk 0:00:51.2]}
36... cxb5 {[%clk 0:00:16.4]} 37. Bxb7 {[%clk 0:00:51]} 37... Bc5+ {[%clk
0:00:15.4]} 38. Bxc5+ {[%clk 0:00:50.3]} 38... Nxc5 {[%clk 0:00:16.3]} 39. Bc6+
{[%clk 0:00:48.4]} 39... Kd6 {[%clk 0:00:15.1]} 40. Bxb5 {[%clk 0:00:48.9]}
40... h5 {[%clk 0:00:11.4]} 41. f5 {[%clk 0:00:47.5]} 41... hxg4 {[%clk
0:00:10.4]} 42. fxg6 {[%clk 0:00:42.9]} 42... gxh3 {[%clk 0:00:10.6]} 43. g7
{[%clk 0:00:42.6]} 43... Ke5 {[%clk 0:00:10.8]} 44. Ra8 {[%clk 0:00:35.7]} 44...
a3 {[%clk 0:00:09.9]} 45. Rxa3 {[%clk 0:00:34]} 45... Bd5 {[%clk 0:00:03.1]} 46.
Rxh3 {[%clk 0:00:23.5]} 46... Kf6 {[%clk 0:00:03.4]} 47. Rh5 {[%clk 0:00:23]}
1-0

[Event "*** Titled Tuesday Blitz"]
[Site "Chess.com"]
[Date "2020.03.03"]
[Round "5"]
[White "talman67"]
[Black "Jumbo"]
[Result "0-1"]
[WhiteElo "2554"]
[BlackElo "2729"]
[TimeControl "180+1"]
[EndTime "9:53:07 PST"]
[Termination "Jumbo won by resignation"]

1. e4 {[%clk 0:03:00.9]} 1... e5 {[%clk 0:02:58.4]} 2. Nf3 {[%clk 0:03:01.2]}
2... Nc6 {[%clk 0:02:57.8]} 3. Bb5 {[%clk 0:03:01.5]} 3... a6 {[%clk 0:02:57.3]}
4. Ba4 {[%clk 0:03:01.7]} 4... Nf6 {[%clk 0:02:56.9]} 5. O-O {[%clk 0:03:01.8]}
5... Be7 {[%clk 0:02:55.7]} 6. Re1 {[%clk 0:03:02]} 6... b5 {[%clk 0:02:55]} 7.
Bb3 {[%clk 0:03:02.6]} 7... d6 {[%clk 0:02:55.4]} 8. c3 {[%clk 0:03:02.9]} 8...
O-O {[%clk 0:02:55.4]} 9. h3 {[%clk 0:03:03]} 9... Nb8 {[%clk 0:02:54.2]} 10. d4
{[%clk 0:03:02.8]} 10... Nbd7 {[%clk 0:02:54.4]} 11. Nbd2 {[%clk 0:03:01.6]}
11... Bb7 {[%clk 0:02:54.7]} 12. Bc2 {[%clk 0:03:01.9]} 12... Re8 {[%clk
0:02:55]} 13. Nf1 {[%clk 0:03:02]} 13... Bf8 {[%clk 0:02:55.3]} 14. Ng3 {[%clk
0:03:02.5]} 14... g6 {[%clk 0:02:55.9]} 15. a4 {[%clk 0:02:54.1]} 15... Nb6
{[%clk 0:02:45.4]} 16. b3 {[%clk 0:02:32.8]} 16... bxa4 {[%clk 0:02:44.5]} 17.
bxa4 {[%clk 0:02:32]} 17... a5 {[%clk 0:02:45.1]} 18. Bg5 {[%clk 0:02:27.3]}
18... h6 {[%clk 0:02:45]} 19. Bc1 {[%clk 0:02:17.7]} 19... Qc8 {[%clk
0:02:43.8]} 20. Bb3 {[%clk 0:02:12.2]} 20... Ba6 {[%clk 0:02:42.9]} 21. Nd2
{[%clk 0:02:02]} 21... Bg7 {[%clk 0:02:33.6]} 22. Qf3 {[%clk 0:02:01.5]} 22...
d5 {[%clk 0:02:08.2]} 23. exd5 {[%clk 0:01:26]} 23... exd4 {[%clk 0:02:06.9]}
24. Bb2 {[%clk 0:01:26.3]} 24... Rb8 {[%clk 0:01:39.7]} 25. d6 {[%clk
0:01:14.8]} 25... cxd6 {[%clk 0:01:19.6]} 26. Nde4 {[%clk 0:01:11.2]} 26... Qd8
{[%clk 0:01:16.9]} 27. cxd4 {[%clk 0:00:52.8]} 27... Bc4 {[%clk 0:01:13.8]} 28.
Bxc4 {[%clk 0:00:29.5]} 28... Nxc4 {[%clk 0:01:12.8]} 29. Bc3 {[%clk 0:00:29.9]}
29... Nd5 {[%clk 0:01:05.1]} 30. Rab1 {[%clk 0:00:20.1]} 30... Qd7 {[%clk
0:00:51.9]} 31. Qd3 {[%clk 0:00:11.4]} 31... Qxa4 {[%clk 0:00:44.9]} 32. h4
{[%clk 0:00:11.9]} 32... Qc6 {[%clk 0:00:25.2]} 33. h5 {[%clk 0:00:10.3]} 33...
Rxb1 {[%clk 0:00:24.6]} 34. Rxb1 {[%clk 0:00:09.6]} 34... Nf4 {[%clk 0:00:24.5]}
35. Qf3 {[%clk 0:00:07.7]} 35... Nxh5 {[%clk 0:00:24.5]} 36. Nxh5 {[%clk
0:00:07.1]} 36... Qxe4 {[%clk 0:00:24.4]} 37. Qxe4 {[%clk 0:00:06.6]} 37... Rxe4
{[%clk 0:00:25.3]} 38. Rb8+ {[%clk 0:00:06]} 38... Kh7 {[%clk 0:00:25.5]} 39.
Nxg7 {[%clk 0:00:06.5]} 39... Kxg7 {[%clk 0:00:25.9]} 40. d5+ {[%clk 0:00:07]}
40... Ne5 {[%clk 0:00:26.5]} 41. Bxa5 {[%clk 0:00:06.5]} 41... Rd4 {[%clk
0:00:23.3]} 42. Bc3 {[%clk 0:00:06]} 42... Rd3 {[%clk 0:00:23.7]} 43. Bb2 {[%clk
0:00:05.7]} 43... g5 {[%clk 0:00:24.2]} 44. Rb5 {[%clk 0:00:04.1]} 44... Kf6
{[%clk 0:00:21.6]} 45. g3 {[%clk 0:00:02.6]} 45... Kf5 {[%clk 0:00:21.6]} 46.
Kg2 {[%clk 0:00:03]} 46... g4 {[%clk 0:00:20.6]} 47. Bxe5 {[%clk 0:00:01.9]}
47... dxe5 {[%clk 0:00:19.9]} 48. Rb7 {[%clk 0:00:02.8]} 48... f6 {[%clk
0:00:20.5]} 49. Rh7 {[%clk 0:00:02.2]} 49... Kg6 {[%clk 0:00:20.1]} 50. Rd7
{[%clk 0:00:03.1]} 50... h5 {[%clk 0:00:20.4]} 51. d6 {[%clk 0:00:03.5]} 51...
Rd2 {[%clk 0:00:20.7]} 52. Rd8 {[%clk 0:00:03.9]} 52... Kf7 {[%clk 0:00:21]} 53.
Rh8 {[%clk 0:00:03.7]} 53... Kg6 {[%clk 0:00:20.3]} 54. Rd8 {[%clk 0:00:03.6]}
54... Kf5 {[%clk 0:00:19.4]} 55. Rh8 {[%clk 0:00:02.8]} 55... Rxd6 {[%clk
0:00:18]} 56. Rxh5+ {[%clk 0:00:02.8]} 56... Ke4 {[%clk 0:00:18.5]} 57. Rh8
{[%clk 0:00:03.3]} 57... Rd2 {[%clk 0:00:17.6]} 58. Rf8 {[%clk 0:00:04.2]} 58...
f5 {[%clk 0:00:17.4]} 59. Ra8 {[%clk 0:00:04.3]} 59... f4 {[%clk 0:00:17.8]} 60.
Ra4+ {[%clk 0:00:04.4]} 60... Rd4 {[%clk 0:00:17.2]} 61. gxf4 {[%clk 0:00:05.3]}
61... Rxa4 {[%clk 0:00:16.4]} 62. fxe5 {[%clk 0:00:05.3]} 62... Kxe5 {[%clk
0:00:16.5]} 0-1

[Event "*** Titled Tuesday Blitz"]
[Site "Chess.com"]
[Date "2020.03.03"]
[Round "5"]
[White "Turkey-Champion"]
[Black "dusanacns"]
[Result "0-1"]
[WhiteElo "2459"]
[BlackElo "2661"]
[TimeControl "180+1"]
[EndTime "9:53:15 PST"]
[Termination "dusanacns won by checkmate"]

1. e4 {[%clk 0:03:00.9]} 1... c6 {[%clk 0:03:00]} 2. Nc3 {[%clk 0:02:59.6]} 2...
d5 {[%clk 0:03:00.3]} 3. d4 {[%clk 0:02:58.9]} 3... dxe4 {[%clk 0:03:00.4]} 4.
Nxe4 {[%clk 0:02:59.8]} 4... Nf6 {[%clk 0:03:01.3]} 5. Nxf6+ {[%clk 0:03:00.1]}
5... exf6 {[%clk 0:03:02.2]} 6. c3 {[%clk 0:02:59.7]} 6... Bd6 {[%clk
0:03:02.7]} 7. Bd3 {[%clk 0:03:00.1]} 7... O-O {[%clk 0:03:03.2]} 8. Ne2 {[%clk
0:03:01]} 8... Re8 {[%clk 0:03:01.8]} 9. O-O {[%clk 0:03:01.1]} 9... Nd7 {[%clk
0:03:02.1]} 10. Bf4 {[%clk 0:02:45.4]} 10... Nf8 {[%clk 0:03:01.3]} 11. Qd2
{[%clk 0:02:43.1]} 11... Bg4 {[%clk 0:02:57.3]} 12. f3 {[%clk 0:02:39.7]} 12...
Be6 {[%clk 0:02:47.8]} 13. Rfe1 {[%clk 0:02:34.5]} 13... a5 {[%clk 0:02:45.4]}
14. Ng3 {[%clk 0:02:18.5]} 14... Ng6 {[%clk 0:02:34.2]} 15. Bxd6 {[%clk
0:02:14.8]} 15... Qxd6 {[%clk 0:02:35.1]} 16. Bxg6 {[%clk 0:01:50.2]} 16... fxg6
{[%clk 0:02:19.1]} 17. Ne4 {[%clk 0:01:48]} 17... Qc7 {[%clk 0:02:18.8]} 18.
Rac1 {[%clk 0:01:42.1]} 18... Bxa2 {[%clk 0:02:07.7]} 19. c4 {[%clk 0:01:33]}
19... Bb3 {[%clk 0:02:03.6]} 20. Nc5 {[%clk 0:01:29.8]} 20... a4 {[%clk
0:01:59.5]} 21. Qc3 {[%clk 0:01:17.6]} 21... h5 {[%clk 0:01:32.4]} 22. Nxb3
{[%clk 0:00:53.5]} 22... axb3 {[%clk 0:01:33.3]} 23. Qxb3 {[%clk 0:00:54.4]}
23... Kh7 {[%clk 0:01:33.4]} 24. Qd3 {[%clk 0:00:47.7]} 24... Qb6 {[%clk
0:01:30.5]} 25. Qd2 {[%clk 0:00:43.9]} 25... Rxe1+ {[%clk 0:01:14.9]} 26. Rxe1
{[%clk 0:00:44.8]} 26... Rd8 {[%clk 0:01:15.7]} 27. Rd1 {[%clk 0:00:43.1]} 27...
Qb3 {[%clk 0:01:15.4]} 28. Rc1 {[%clk 0:00:39.3]} 28... c5 {[%clk 0:00:58.6]}
29. d5 {[%clk 0:00:38.5]} 29... b5 {[%clk 0:00:58.8]} 30. Qc3 {[%clk 0:00:33.1]}
30... Qa2 {[%clk 0:00:27.4]} 31. cxb5 {[%clk 0:00:22.1]} 31... Rxd5 {[%clk
0:00:27.1]} 32. b6 {[%clk 0:00:18.7]} 32... Rd4 {[%clk 0:00:15.3]} 33. Qxc5
{[%clk 0:00:12.6]} 33... Qxb2 {[%clk 0:00:13.9]} 34. h3 {[%clk 0:00:03.2]} 34...
Rb4 {[%clk 0:00:09.2]} 35. Qc7 {[%clk 0:00:02.6]} 35... Rxb6 {[%clk 0:00:08.6]}
36. Qc3 {[%clk 0:00:03.3]} 36... Qb5 {[%clk 0:00:07.3]} 37. Rc2 {[%clk
0:00:03.5]} 37... Re6 {[%clk 0:00:06.8]} 38. Qd2 {[%clk 0:00:03.9]} 38... Qf5
{[%clk 0:00:05.7]} 39. Qf2 {[%clk 0:00:03.6]} 39... Rd6 {[%clk 0:00:05.7]} 40.
Rd2 {[%clk 0:00:03.8]} 40... Rc6 {[%clk 0:00:05.2]} 41. Rd1 {[%clk 0:00:03.9]}
41... Rc2 {[%clk 0:00:05.1]} 42. Rd2 {[%clk 0:00:03.5]} 42... Rc1+ {[%clk
0:00:04.8]} 43. Kh2 {[%clk 0:00:04]} 43... Qe5+ {[%clk 0:00:05.2]} 44. g3 {[%clk
0:00:04.4]} 44... Qa1 {[%clk 0:00:05.4]} 45. Kg2 {[%clk 0:00:03]} 45... Re1
{[%clk 0:00:05]} 46. g4 {[%clk 0:00:03]} 46... Qe5 {[%clk 0:00:03.8]} 47. f4
{[%clk 0:00:03.1]} 47... Qe4+ {[%clk 0:00:04]} 48. Kg3 {[%clk 0:00:03.5]} 48...
g5 {[%clk 0:00:03]} 49. gxh5 {[%clk 0:00:03.5]} 49... gxf4+ {[%clk 0:00:02.9]}
50. Kh4 {[%clk 0:00:02.9]} 50... f3+ {[%clk 0:00:03]} 51. Kg3 {[%clk 0:00:02.8]}
51... Qe5+ {[%clk 0:00:03.3]} 52. Kxf3 {[%clk 0:00:02.8]} 52... Qe4+ {[%clk
0:00:03.8]} 53. Kg3 {[%clk 0:00:02.9]} 53... Re3+ {[%clk 0:00:03.7]} 54. Kh2
{[%clk 0:00:02.6]} 54... Qe5+ {[%clk 0:00:04.1]} 55. Kg2 {[%clk 0:00:03.2]}
55... Qe4+ {[%clk 0:00:03.7]} 56. Kh2 {[%clk 0:00:03.5]} 56... f5 {[%clk
0:00:04]} 57. Qg2 {[%clk 0:00:02.9]} 57... Qe5+ {[%clk 0:00:03.5]} 58. Kg1
{[%clk 0:00:03.3]} 58... Re1+ {[%clk 0:00:03.9]} 59. Kf2 {[%clk 0:00:03.9]}
59... Qe3# {[%clk 0:00:04.4]} 0-1

[Event "*** Titled Tuesday Blitz"]
[Site "Chess.com"]
[Date "2020.03.03"]
[Round "5"]
[White "IMDT02"]
[Black "MikaelyanArman"]
[Result "1-0"]
[WhiteElo "2478"]
[BlackElo "2639"]
[TimeControl "180+1"]
[EndTime "9:53:15 PST"]
[Termination "IMDT02 won by resignation"]

1. d4 {[%clk 0:03:00.6]} 1... Nf6 {[%clk 0:02:59.7]} 2. c4 {[%clk 0:03:01.2]}
2... g6 {[%clk 0:03:00.2]} 3. Nc3 {[%clk 0:03:01.5]} 3... Bg7 {[%clk 0:03:00.8]}
4. e4 {[%clk 0:03:01.4]} 4... O-O {[%clk 0:03:01.4]} 5. f3 {[%clk 0:03:02.1]}
5... c5 {[%clk 0:02:59.2]} 6. Nge2 {[%clk 0:03:00.5]} 6... d6 {[%clk 0:02:57.3]}
7. Be3 {[%clk 0:03:00]} 7... Nc6 {[%clk 0:02:57]} 8. d5 {[%clk 0:03:00.5]} 8...
Ne5 {[%clk 0:02:56.3]} 9. Ng3 {[%clk 0:03:01]} 9... e6 {[%clk 0:02:54.4]} 10.
Be2 {[%clk 0:03:01]} 10... a6 {[%clk 0:02:49.3]} 11. a4 {[%clk 0:02:59.9]} 11...
h5 {[%clk 0:02:46.3]} 12. O-O {[%clk 0:02:59.9]} 12... Re8 {[%clk 0:02:44]} 13.
h3 {[%clk 0:02:53.9]} 13... exd5 {[%clk 0:02:42.5]} 14. cxd5 {[%clk 0:02:54.8]}
14... h4 {[%clk 0:02:41.5]} 15. Nh1 {[%clk 0:02:55.1]} 15... Rb8 {[%clk
0:02:29.7]} 16. Bg5 {[%clk 0:02:49.3]} 16... Qb6 {[%clk 0:02:26.3]} 17. Qc2
{[%clk 0:02:13.3]} 17... Nh5 {[%clk 0:02:19.5]} 18. Bxh4 {[%clk 0:02:11.7]}
18... Nf4 {[%clk 0:02:18.2]} 19. a5 {[%clk 0:02:03.2]} 19... Qb4 {[%clk
0:02:04.9]} 20. Ra4 {[%clk 0:01:55.3]} 20... Nxe2+ {[%clk 0:02:05.1]} 21. Qxe2
{[%clk 0:01:49.7]} 21... Qb3 {[%clk 0:02:05.3]} 22. Rfa1 {[%clk 0:01:38.2]}
22... Bd7 {[%clk 0:02:03.5]} 23. R1a3 {[%clk 0:00:55.6]} 23... Bxa4 {[%clk
0:02:03.3]} 24. Rxb3 {[%clk 0:00:56.1]} 24... Bxb3 {[%clk 0:02:04.2]} 25. Nf2
{[%clk 0:00:54.8]} 25... b5 {[%clk 0:02:02]} 26. axb6 {[%clk 0:00:49.4]} 26...
Rxb6 {[%clk 0:02:02]} 27. f4 {[%clk 0:00:46.8]} 27... Nc4 {[%clk 0:02:02.1]} 28.
e5 {[%clk 0:00:43.1]} 28... dxe5 {[%clk 0:01:59.1]} 29. Nfe4 {[%clk 0:00:43.6]}
29... Rbb8 {[%clk 0:01:35.5]} 30. Nxc5 {[%clk 0:00:43]} 30... exf4 {[%clk
0:01:33.1]} 31. Qf2 {[%clk 0:00:27.2]} 31... Ne3 {[%clk 0:01:25.6]} 32. Nxb3
{[%clk 0:00:25.1]} 32... Rxb3 {[%clk 0:01:26.5]} 33. d6 {[%clk 0:00:22.5]} 33...
Rb7 {[%clk 0:01:17]} 34. Be7 {[%clk 0:00:20]} 34... Nf5 {[%clk 0:01:13.7]} 35.
Nd5 {[%clk 0:00:16.8]} 35... Bd4 {[%clk 0:00:41.8]} 36. Nf6+ {[%clk 0:00:16.2]}
36... Kh8 {[%clk 0:00:40.9]} 37. Qxd4 {[%clk 0:00:12.6]} 37... Nxd4 {[%clk
0:00:41.8]} 38. Nxe8 {[%clk 0:00:13.5]} 38... Nf5 {[%clk 0:00:40.1]} 39. Nc7
{[%clk 0:00:08.8]} 39... Rxc7 {[%clk 0:00:07.8]} 40. Bf6+ {[%clk 0:00:08.7]}
40... Kh7 {[%clk 0:00:07.9]} 41. dxc7 {[%clk 0:00:08.7]} 41... Nd6 {[%clk
0:00:08.6]} 42. Be5 {[%clk 0:00:08.3]} 42... Nc8 {[%clk 0:00:08.2]} 43. Bxf4
{[%clk 0:00:08.9]} 43... Kg7 {[%clk 0:00:08.6]} 44. Kf2 {[%clk 0:00:08.9]} 44...
Kf6 {[%clk 0:00:09.2]} 45. Ke3 {[%clk 0:00:09.3]} 45... Kf5 {[%clk 0:00:08]} 46.
g4+ {[%clk 0:00:08.8]} 46... Ke6 {[%clk 0:00:07.6]} 47. Ke4 {[%clk 0:00:09.4]}
47... f6 {[%clk 0:00:07.1]} 48. h4 {[%clk 0:00:09.4]} 48... f5+ {[%clk
0:00:03.6]} 49. gxf5+ {[%clk 0:00:09.5]} 49... gxf5+ {[%clk 0:00:04.5]} 50. Kd4
{[%clk 0:00:09.5]} 50... Kf6 {[%clk 0:00:02.2]} 51. h5 {[%clk 0:00:09.8]} 51...
Kg7 {[%clk 0:00:02.1]} 52. Kc5 {[%clk 0:00:10.2]} 52... Kf6 {[%clk 0:00:01.6]}
53. Kc6 {[%clk 0:00:10.6]} 53... Ne7+ {[%clk 0:00:02.5]} 54. Kb7 {[%clk
0:00:10.8]} 54... Ke6 {[%clk 0:00:02.2]} 55. c8=Q+ {[%clk 0:00:10.9]} 55... Nxc8
{[%clk 0:00:02.5]} 56. Kxc8 {[%clk 0:00:11.8]} 56... Kf7 {[%clk 0:00:03.4]} 57.
Kd7 {[%clk 0:00:11.8]} 1-0